fUST/lending_fUST_20260524
["ID","MTS","AMOUNT","RATE_DAILY","PERIOD"]
[422895448,1779587443000,-500.93165514,9.462e-05,2]
[422895452,1779587443000,-500.51469852,9.462e-05,2]
[422895445,1779587443000,-500.0,9.462e-05,2]
[422895453,1779587443000,-500.26311948,9.462e-05,2]
[422895446,1779587443000,-527.2126633,9.462e-05,2]
[422895454,1779587443000,-500.3857309,9.462e-05,2]
[422895455,1779587443000,-312.83232954,9.462e-05,2]
[422895449,1779587443000,-575.11411064,9.462e-05,2]
[422895458,1779587443000,-501.05773632,9.462e-05,2]
[422895464,1779587443000,-500.98288968,9.462e-05,2]
[422895476,1779587443000,-500.65255913,9.465e-05,2]
[422895459,1779587443000,-500.0,9.462e-05,2]
[422895462,1779587443000,-500.0,9.462e-05,2]
[422895465,1779587443000,-500.0,9.462e-05,2]
[422895460,1779587443000,-500.0,9.462e-05,2]
[422895463,1779587443000,-500.64559936,9.462e-05,2]
[422895461,1779587443000,-500.0,9.462e-05,2]
[422895480,1779587443000,-500.0,9.465e-05,2]
[422895471,1779587443000,-626.64,9.462e-05,2]
[422895470,1779587443000,-500.0,9.462e-05,2]
[422895474,1779587443000,-500.0,9.465e-05,2]
[422895482,1779587443000,-500.0,9.465e-05,2]
[422895487,1779587443000,-500.74038047,9.465e-05,2]
[422895444,1779587443000,-500.21163113,9.462e-05,2]
[422895457,1779587443000,-500.82120927,9.462e-05,2]
[422895447,1779587443000,-500.93186075,9.462e-05,2]
[422895414,1779587443000,-500.0,9.462e-05,2]
[422895442,1779587443000,-500.52501496,9.462e-05,2]
[422895473,1779587443000,-500.53400338,9.465e-05,2]
[422895413,1779587443000,-500.66560933,9.462e-05,2]
[422895412,1779587443000,-500.4350178,9.462e-05,2]
[422895416,1779587443000,-500.0,9.462e-05,2]
[422895418,1779587443000,-500.24653401,9.462e-05,2]
[422895417,1779587443000,-500.0,9.462e-05,2]
[422895415,1779587443000,-500.0,9.462e-05,2]
[422895427,1779587443000,-500.42381996,9.462e-05,2]
[422895426,1779587443000,-500.54840212,9.462e-05,2]
[422895422,1779587443000,-500.0,9.462e-05,2]
[422895423,1779587443000,-589.80798444,9.462e-05,2]
[422895424,1779587443000,-500.43908402,9.462e-05,2]
[422895420,1779587443000,-501.31071871,9.462e-05,2]
[422895419,1779587443000,-500.52553688,9.462e-05,2]
[422895425,1779587443000,-500.0,9.462e-05,2]
[422895421,1779587443000,-500.0,9.462e-05,2]
[422895439,1779587443000,-500.0,9.462e-05,2]
[422895441,1779587443000,-500.0,9.462e-05,2]
[422895443,1779587443000,-500.0,9.462e-05,2]
[422895437,1779587443000,-581.52978652,9.462e-05,2]
[422895436,1779587443000,-500.53788426,9.462e-05,2]
[422895431,1779587443000,-500.46110085,9.462e-05,2]
[422895435,1779587443000,-500.0,9.462e-05,2]
[422895450,1779587443000,-500.0,9.462e-05,2]
[422895432,1779587443000,-508.38339088,9.462e-05,2]
[422895434,1779587443000,-500.50479475,9.462e-05,2]
[422895430,1779587443000,-500.72560497,9.462e-05,2]
[422895429,1779587443000,-500.47362068,9.462e-05,2]
[422895428,1779587443000,-500.50755703,9.462e-05,2]
[422895438,1779587443000,-500.0,9.462e-05,2]
[422895440,1779587443000,-2243.59,9.462e-05,2]
[422895433,1779587443000,-503.87155259,9.462e-05,2]
[422895484,1779587443000,-500.0,9.465e-05,2]
[422895503,1779587443000,-576.75504074,9.465e-05,2]
[422895489,1779587443000,-500.75184128,9.465e-05,2]
[422895526,1779587443000,-500.45898085,9.465e-05,2]
[422895525,1779587443000,-500.0,9.465e-05,2]
[422895532,1779587443000,-500.83031512,9.465e-05,2]
[422895529,1779587443000,-500.74439645,9.465e-05,2]
[422895521,1779587443000,-500.0,9.465e-05,2]
[422895531,1779587443000,-501.43095361,9.465e-05,2]
[422895530,1779587443000,-604.60186575,9.465e-05,2]
[422895533,1779587443000,-521.24009773,9.465e-05,2]
[422895535,1779587443000,-500.0,9.465e-05,2]
[422895545,1779587443000,-500.0,9.465e-05,2]
[422895546,1779587443000,-500.0,9.465e-05,2]
[422895536,1779587443000,-500.5373446,9.465e-05,2]
[422895534,1779587443000,-500.56908023,9.465e-05,2]
[422895540,1779587443000,-500.46250298,9.465e-05,2]
[422895527,1779587443000,-622.45686325,9.465e-05,2]
[422895539,1779587443000,-500.23574808,9.465e-05,2]
[422895544,1779587443000,-500.0,9.465e-05,2]
[422895538,1779587443000,-500.0,9.465e-05,2]
[422895547,1779587443000,-500.0,9.465e-05,2]
[422895542,1779587443000,-500.44104324,9.465e-05,2]
[422895541,1779587443000,-500.47654997,9.465e-05,2]
[422895549,1779587443000,-500.0,9.465e-05,2]
[422895558,1779587443000,-342.01162423,9.465e-05,2]
[422895560,1779587443000,-500.0,9.466e-05,2]
[422895552,1779587443000,-500.2778074,9.465e-05,2]
[422895550,1779587443000,-500.62407722,9.465e-05,2]
[422895548,1779587443000,-500.0,9.465e-05,2]
[422895556,1779587443000,-550.35465854,9.465e-05,2]
[422895554,1779587443000,-500.0,9.465e-05,2]
[422895478,1779587443000,-500.0,9.465e-05,2]
[422895543,1779587443000,-500.0,9.465e-05,2]
[422895528,1779587443000,-500.75246037,9.465e-05,2]
[422895537,1779587443000,-500.0,9.465e-05,2]
[422895522,1779587443000,-500.0,9.465e-05,2]
[422895523,1779587443000,-500.9105089,9.465e-05,2]
[422895491,1779587443000,-500.0,9.465e-05,2]
[422895498,1779587443000,-500.33977144,9.465e-05,2]
[422895494,1779587443000,-500.58195449,9.465e-05,2]
[422895492,1779587443000,-500.32596213,9.465e-05,2]
[422895501,1779587443000,-575.99870113,9.465e-05,2]
[422895495,1779587443000,-500.25900731,9.465e-05,2]
[422895497,1779587443000,-501.30480761,9.465e-05,2]
[422895499,1779587443000,-627.96,9.465e-05,2]
[422895496,1779587443000,-500.85559149,9.465e-05,2]
[422895502,1779587443000,-500.0,9.465e-05,2]
[422895506,1779587443000,-501.24104112,9.465e-05,2]
[422895505,1779587443000,-500.0,9.465e-05,2]
[422895504,1779587443000,-500.61407105,9.465e-05,2]
[422895508,1779587443000,-500.0,9.465e-05,2]
[422895500,1779587443000,-500.50880907,9.465e-05,2]
[422895524,1779587443000,-500.0,9.465e-05,2]
[422895507,1779587443000,-500.0,9.465e-05,2]
[422895520,1779587443000,-500.0,9.465e-05,2]
[422895516,1779587443000,-577.34448691,9.465e-05,2]
[422895515,1779587443000,-500.51274861,9.465e-05,2]
[422895517,1779587443000,-500.52027314,9.465e-05,2]
[422895514,1779587443000,-500.5918783,9.465e-05,2]
[422895513,1779587443000,-500.0,9.465e-05,2]
[422895490,1779587443000,-500.0,9.465e-05,2]
[422895510,1779587443000,-500.6009363,9.465e-05,2]
[422895519,1779587443000,-528.14643316,9.465e-05,2]
[422895518,1779587443000,-500.0,9.465e-05,2]
[422895511,1779587443000,-500.0,9.465e-05,2]
[422895509,1779587443000,-500.0,9.465e-05,2]
[422895512,1779587443000,-424.80393834,9.465e-05,2]
[422895650,1779587444000,-500.30431465,9.736e-05,2]
[422895648,1779587444000,-500.0,9.736e-05,2]
[422895646,1779587444000,-500.0,9.736e-05,2]
[422895631,1779587444000,-501.02823681,9.736e-05,2]
[422895644,1779587444000,-218.53191527,9.736e-05,2]
[422895629,1779587444000,-575.08658173,9.736e-05,2]
[422895641,1779587444000,-500.72512557,9.736e-05,2]
[422895627,1779587444000,-500.0,9.736e-05,2]
[422895637,1779587444000,-2243.59,9.736e-05,2]
[422895625,1779587444000,-500.0,9.736e-05,2]
[422895642,1779587444000,-500.0,9.736e-05,2]
[422895652,1779587444000,-500.80532754,9.736e-05,2]
[422895633,1779587444000,-501.7919735,9.736e-05,2]
[422895639,1779587444000,-496.12289209,9.736e-05,2]
[422895680,1779587444000,-500.0,9.739e-05,2]
[422895656,1779587444000,-500.27569206,9.736e-05,2]
[422895658,1779587444000,-500.56438808,9.736e-05,2]
[422895671,1779587444000,-500.0,9.739e-05,2]
[422895670,1779587444000,-500.0,9.739e-05,2]
[422895660,1779587444000,-500.0,9.736e-05,2]
[422895675,1779587444000,-627.96,9.739e-05,2]
[422895673,1779587444000,-500.0,9.739e-05,2]
[422895668,1779587444000,-625.11864958,9.739e-05,2]
[422895662,1779587444000,-500.0,9.736e-05,2]
[422895664,1779587444000,-626.64,9.736e-05,2]
[422895666,1779587444000,-500.0,9.739e-05,2]
[422895677,1779587444000,-500.0,9.739e-05,2]
[422895679,1779587444000,-500.0,9.739e-05,2]
[422895635,1779587444000,-500.0,9.736e-05,2]
[422895654,1779587444000,-501.08646118,9.736e-05,2]
[422895600,1779587444000,-500.0,9.735e-05,2]
[422895561,1779587444000,-202.80740255,9.466e-05,2]
[422895608,1779587444000,-327.13690918,9.736e-05,2]
[422895682,1779587444000,-386.01433159,9.739e-05,2]
[422895565,1779587444000,-500.0,9.467e-05,2]
[422895563,1779587444000,-500.0,9.467e-05,2]
[422895567,1779587444000,-500.97527908,9.467e-05,2]
[422895569,1779587444000,-500.54116099,9.467e-05,2]
[422895570,1779587444000,-500.59283035,9.467e-05,2]
[422895582,1779587444000,-500.75489992,9.467e-05,2]
[422895580,1779587444000,-362.17548523,9.467e-05,2]
[422895584,1779587444000,-500.3394172,9.467e-05,2]
[422895586,1779587444000,-500.0,9.467e-05,2]
[422895576,1779587444000,-500.71795315,9.467e-05,2]
[422895578,1779587444000,-500.7025283,9.467e-05,2]
[422895574,1779587444000,-500.0,9.467e-05,2]
[422895572,1779587444000,-500.0,9.467e-05,2]
[422895604,1779587444000,-500.0,9.735e-05,2]
[422895588,1779587444000,-500.79338315,9.467e-05,2]
[422895594,1779587444000,-500.72829533,9.467e-05,2]
[422895596,1779587444000,-162.33,9.501e-05,2]
[422895592,1779587444000,-500.0,9.467e-05,2]
[422895598,1779587444000,-500.0,9.735e-05,2]
[422895610,1779587444000,-501.26095609,9.736e-05,2]
[422895617,1779587444000,-500.7362669,9.736e-05,2]
[422895612,1779587444000,-500.0,9.736e-05,2]
[422895613,1779587444000,-500.0,9.736e-05,2]
[422895615,1779587444000,-501.23703339,9.736e-05,2]
[422895619,1779587444000,-500.32709782,9.736e-05,2]
[422895621,1779587444000,-500.0,9.736e-05,2]
[422895623,1779587444000,-509.72493798,9.736e-05,2]
[422895602,1779587444000,-500.0,9.735e-05,2]
[422895606,1779587444000,-500.0,9.736e-05,2]
[422895590,1779587444000,-500.0,9.467e-05,2]
[422895683,1779587444000,-500.0,9.739e-05,2]
[422895698,1779587444000,-500.0,9.739e-05,2]
[422895689,1779587444000,-500.0,9.739e-05,2]
[422895724,1779587444000,-458.70740154,0.0001001,2]
[422895725,1779587444000,-500.0,0.0001001,2]
[422895722,1779587444000,-2243.59,0.0001001,2]
[422895726,1779587444000,-344.49374359,0.0001001,2]
[422895723,1779587444000,-500.0,0.0001001,2]
[422895719,1779587444000,-500.0,0.0001001,2]
[422895721,1779587444000,-500.0,0.0001001,2]
[422895727,1779587444000,-500.0,0.0001001,2]
[422895730,1779587444000,-163.6236804,0.00010013,2]
[422895732,1779587444000,-500.0,0.00010013,2]
[422895737,1779587444000,-500.0,0.00010013,2]
[422895734,1779587444000,-500.0,0.00010013,2]
[422895685,1779587444000,-472.30264384,9.739e-05,2]
[422895739,1779587444000,-500.0,0.00010013,2]
[422895731,1779587444000,-500.0,0.00010013,2]
[422895740,1779587444000,-505.05276256,0.00010013,2]
[422895738,1779587444000,-500.0,0.00010013,2]
[422895735,1779587444000,-500.0,0.00010013,2]
[422895736,1779587444000,-500.0,0.00010013,2]
[422895743,1779587444000,-500.0,0.00010013,2]
[422895742,1779587444000,-500.0,0.00010013,2]
[422895741,1779587444000,-500.0,0.00010013,2]
[422895745,1779587444000,-500.0,0.00010013,2]
[422895744,1779587444000,-500.0,0.00010013,2]
[422895746,1779587444000,-580.99641267,0.00010013,2]
[422895748,1779587444000,-500.0,0.00010013,2]
[422895750,1779587444000,-500.0,0.00010015,2]
[422895747,1779587444000,-500.0,0.00010013,2]
[422895749,1779587444000,-500.0,0.00010014,2]
[422895720,1779587444000,-500.0,0.0001001,2]
[422895717,1779587444000,-457.6376072,0.0001001,2]
[422895733,1779587444000,-627.96,0.00010013,2]
[422895729,1779587444000,-500.53805496,0.00010013,2]
[422895728,1779587444000,-626.64,0.0001001,2]
[422895687,1779587444000,-314.51250578,9.739e-05,2]
[422895688,1779587444000,-424.86651845,9.739e-05,2]
[422895686,1779587444000,-500.0,9.739e-05,2]
[422895690,1779587444000,-166.48393764,9.739e-05,2]
[422895692,1779587444000,-375.80683467,9.739e-05,2]
[422895701,1779587444000,-500.0,9.74e-05,2]
[422895703,1779587444000,-500.40506274,9.741e-05,2]
[422895691,1779587444000,-500.0,9.739e-05,2]
[422895702,1779587444000,-500.73002022,9.741e-05,2]
[422895693,1779587444000,-500.0,9.739e-05,2]
[422895696,1779587444000,-500.0,9.739e-05,2]
[422895695,1779587444000,-500.0,9.739e-05,2]
[422895699,1779587444000,-500.0,9.739e-05,2]
[422895694,1779587444000,-500.0,9.739e-05,2]
[422895700,1779587444000,-500.0,9.739e-05,2]
[422895705,1779587444000,-500.0,9.741e-05,2]
[422895697,1779587444000,-500.0,9.739e-05,2]
[422895711,1779587444000,-268.11635682,0.00010009,2]
[422895715,1779587444000,-500.0,0.0001001,2]
[422895716,1779587444000,-500.0,0.0001001,2]
[422895713,1779587444000,-229.57933033,0.00010009,2]
[422895714,1779587444000,-500.0,0.00010009,2]
[422895712,1779587444000,-500.0,0.00010009,2]
[422895718,1779587444000,-500.0,0.0001001,2]
[422895709,1779587444000,-179.24543093,9.829e-05,2]
[422895708,1779587444000,-371.10807606,9.741e-05,2]
[422895704,1779587444000,-500.0,9.741e-05,2]
[422895706,1779587444000,-296.63135155,9.741e-05,2]
[422895707,1779587444000,-500.0,9.741e-05,2]
[422895710,1779587444000,-172.89122572,9.903e-05,2]
[422895795,1779587445000,-499.91567213,0.00010558,2]
[422895793,1779587445000,-500.0,0.00010557,2]
[422895792,1779587445000,-500.0,0.00010557,2]
[422895797,1779587445000,-500.0,0.00010558,2]
[422895790,1779587445000,-2139.2401922,0.00010404,21]
[422895791,1779587445000,-172.89122572,0.00010516,2]
[422895789,1779587445000,-720.0,0.00010312,2]
[422895794,1779587445000,-500.0,0.00010558,2]
[422895786,1779587445000,-200.93014004,0.00010288,2]
[422895787,1779587445000,-500.0,0.00010289,2]
[422895788,1779587445000,-600.29667765,0.00010289,2]
[422895798,1779587445000,-500.0,0.00010558,2]
[422895796,1779587445000,-542.64996352,0.00010558,2]
[422895799,1779587445000,-2243.59,0.00010558,2]
[422895785,1779587445000,-500.0,0.00010287,2]
[422895801,1779587445000,-500.0,0.00010558,2]
[422895802,1779587445000,-500.0,0.00010558,2]
[422895811,1779587445000,-500.0,0.00010561,2]
[422895806,1779587445000,-627.96,0.00010561,2]
[422895809,1779587445000,-483.31990031,0.00010561,2]
[422895814,1779587445000,-500.0,0.00010561,2]
[422895810,1779587445000,-500.0,0.00010561,2]
[422895805,1779587445000,-500.0,0.00010561,2]
[422895808,1779587445000,-500.0,0.00010561,2]
[422895807,1779587445000,-578.75230675,0.00010561,2]
[422895803,1779587445000,-626.64,0.00010558,2]
[422895804,1779587445000,-500.0,0.00010561,2]
[422895813,1779587445000,-500.0,0.00010561,2]
[422895812,1779587445000,-500.0,0.00010561,2]
[422895800,1779587445000,-500.0,0.00010558,2]
[422895776,1779587445000,-500.0,0.00010287,2]
[422895763,1779587445000,-346.31191227,0.00010284,2]
[422895775,1779587445000,-500.0,0.00010287,2]
[422895824,1779587445000,-500.0,0.00010832,2]
[422895754,1779587445000,-420.0,0.00010104,2]
[422895755,1779587445000,-1680.0,0.00010104,2]
[422895756,1779587445000,-195.372626,0.00010163,2]
[422895751,1779587445000,-500.0,0.00010015,2]
[422895752,1779587445000,-499.4596074,0.00010015,2]
[422895753,1779587445000,-390.39114974,0.0001005,2]
[422895760,1779587445000,-500.0,0.00010284,2]
[422895758,1779587445000,-500.0,0.00010283,2]
[422895765,1779587445000,-2243.59,0.00010284,2]
[422895770,1779587445000,-500.0,0.00010287,2]
[422895766,1779587445000,-500.0,0.00010284,2]
[422895764,1779587445000,-500.0,0.00010284,2]
[422895768,1779587445000,-500.0,0.00010284,2]
[422895778,1779587445000,-500.0,0.00010287,2]
[422895767,1779587445000,-500.0,0.00010284,2]
[422895761,1779587445000,-500.0,0.00010284,2]
[422895757,1779587445000,-500.0,0.00010283,2]
[422895762,1779587445000,-500.0,0.00010284,2]
[422895771,1779587445000,-500.0,0.00010287,2]
[422895772,1779587445000,-627.96,0.00010287,2]
[422895781,1779587445000,-500.0,0.00010287,2]
[422895782,1779587445000,-500.0,0.00010287,2]
[422895783,1779587445000,-500.0,0.00010287,2]
[422895784,1779587445000,-500.0,0.00010287,2]
[422895773,1779587445000,-500.0,0.00010287,2]
[422895779,1779587445000,-500.0,0.00010287,2]
[422895774,1779587445000,-500.0,0.00010287,2]
[422895777,1779587445000,-500.0,0.00010287,2]
[422895780,1779587445000,-500.0,0.00010287,2]
[422895759,1779587445000,-500.0,0.00010284,2]
[422895823,1779587445000,-500.0,0.00010832,2]
[422895769,1779587445000,-626.64,0.00010284,2]
[422895820,1779587445000,-500.0,0.00010563,2]
[422895854,1779587445000,-500.0,0.00011084,2]
[422895856,1779587445000,-500.24418143,0.00011084,2]
[422895855,1779587445000,-500.53554513,0.00011084,2]
[422895858,1779587445000,-500.0,0.00011084,2]
[422895865,1779587445000,-197.90117657,0.00011084,2]
[422895862,1779587445000,-500.0,0.00011084,2]
[422895866,1779587445000,-546.85381814,0.00011084,2]
[422895860,1779587445000,-500.54349791,0.00011084,2]
[422895861,1779587445000,-500.0,0.00011084,2]
[422895857,1779587445000,-500.92896811,0.00011084,2]
[422895859,1779587445000,-500.64389439,0.00011084,2]
[422895863,1779587445000,-500.0,0.00011084,2]
[422895864,1779587445000,-500.38151658,0.00011084,2]
[422895867,1779587445000,-500.0,0.00011084,2]
[422895853,1779587445000,-500.32711914,0.00011084,2]
[422895869,1779587445000,-501.04255302,0.00011084,2]
[422895883,1779587445000,-500.0,0.00011084,2]
[422895868,1779587445000,-500.37628263,0.00011084,2]
[422895872,1779587445000,-500.32890451,0.00011084,2]
[422895871,1779587445000,-183.1144073,0.00011084,2]
[422895874,1779587445000,-500.0,0.00011084,2]
[422895873,1779587445000,-501.57128687,0.00011084,2]
[422895877,1779587445000,-500.0,0.00011084,2]
[422895876,1779587445000,-500.0,0.00011084,2]
[422895875,1779587445000,-500.75275145,0.00011084,2]
[422895878,1779587445000,-203.09897814,0.00011084,2]
[422895879,1779587445000,-500.0,0.00011084,2]
[422895881,1779587445000,-500.0,0.00011084,2]
[422895880,1779587445000,-500.0,0.00011084,2]
[422895815,1779587445000,-549.32927658,0.00010561,2]
[422895870,1779587445000,-500.88178795,0.00011084,2]
[422895851,1779587445000,-554.1118741,0.00011084,2]
[422895882,1779587445000,-500.0,0.00011084,2]
[422895850,1779587445000,-500.0,0.00011084,2]
[422895825,1779587445000,-500.0,0.00010832,2]
[422895821,1779587445000,-500.0,0.00010831,2]
[422895819,1779587445000,-500.0,0.00010561,2]
[422895816,1779587445000,-500.0,0.00010561,2]
[422895817,1779587445000,-500.0,0.00010561,2]
[422895822,1779587445000,-213.76,0.00010831,2]
[422895818,1779587445000,-500.0,0.00010561,2]
[422895826,1779587445000,-2243.59,0.00010832,2]
[422895847,1779587445000,-199.5886521,0.00011084,2]
[422895835,1779587445000,-500.0,0.00010835,2]
[422895831,1779587445000,-500.0,0.00010835,2]
[422895837,1779587445000,-500.0,0.00010835,2]
[422895839,1779587445000,-500.0,0.00010835,2]
[422895833,1779587445000,-627.96,0.00010835,2]
[422895830,1779587445000,-626.64,0.00010832,2]
[422895836,1779587445000,-500.0,0.00010835,2]
[422895829,1779587445000,-500.0,0.00010832,2]
[422895848,1779587445000,-500.99274955,0.00011084,2]
[422895832,1779587445000,-500.0,0.00010835,2]
[422895841,1779587445000,-500.0,0.00010835,2]
[422895849,1779587445000,-500.0,0.00011084,2]
[422895845,1779587445000,-15000.0,0.00010959,2]
[422895852,1779587445000,-1001.06022028,0.00011084,2]
[422895843,1779587445000,-500.0,0.00010835,2]
[422895846,1779587445000,-500.24919795,0.00011084,2]
[422895842,1779587445000,-500.0,0.00010835,2]
[422895840,1779587445000,-500.0,0.00010835,2]
[422895828,1779587445000,-500.0,0.00010832,2]
[422895834,1779587445000,-500.0,0.00010835,2]
[422895838,1779587445000,-500.0,0.00010835,2]
[422895827,1779587445000,-500.0,0.00010832,2]
[422895844,1779587445000,-500.0,0.00010837,2]
[422895935,1779587446000,-500.0,0.00011084,2]
[422895922,1779587446000,-500.0,0.00011084,2]
[422895923,1779587446000,-501.09450292,0.00011084,2]
[422895921,1779587446000,-500.71939722,0.00011084,2]
[422895919,1779587446000,-273.05658459,0.00011084,2]
[422895933,1779587446000,-500.0,0.00011084,2]
[422895914,1779587446000,-500.0,0.00011084,2]
[422895931,1779587446000,-500.0,0.00011084,2]
[422895929,1779587446000,-500.0,0.00011084,2]
[422895930,1779587446000,-500.0,0.00011084,2]
[422895920,1779587446000,-500.45364432,0.00011084,2]
[422895911,1779587446000,-438.2251422,0.00011084,2]
[422895932,1779587446000,-500.0,0.00011084,2]
[422895926,1779587446000,-500.0,0.00011084,2]
[422895949,1779587446000,-500.0,0.00011084,2]
[422895927,1779587446000,-500.0,0.00011084,2]
[422895937,1779587446000,-501.34681404,0.00011084,2]
[422895939,1779587446000,-500.0,0.00011084,2]
[422895943,1779587446000,-500.0,0.00011084,2]
[422895941,1779587446000,-506.50276971,0.00011084,2]
[422895940,1779587446000,-500.0,0.00011084,2]
[422895942,1779587446000,-500.0,0.00011084,2]
[422895945,1779587446000,-500.0,0.00011084,2]
[422895947,1779587446000,-500.0,0.00011084,2]
[422895948,1779587446000,-500.0,0.00011084,2]
[422895944,1779587446000,-500.0,0.00011084,2]
[422895950,1779587446000,-500.0,0.00011084,2]
[422895946,1779587446000,-500.0,0.00011084,2]
[422895912,1779587446000,-500.68947392,0.00011084,2]
[422895925,1779587446000,-500.0,0.00011084,2]
[422895910,1779587446000,-344.47711498,0.00011084,2]
[422895901,1779587446000,-244.58810539,0.00011084,2]
[422895909,1779587446000,-501.06493483,0.00011084,2]
[422895952,1779587446000,-500.0,0.00011084,2]
[422895884,1779587446000,-500.77956691,0.00011084,2]
[422895889,1779587446000,-209.83294997,0.00011084,2]
[422895891,1779587446000,-500.67638993,0.00011084,2]
[422895888,1779587446000,-308.402144,0.00011084,2]
[422895886,1779587446000,-500.0,0.00011084,2]
[422895892,1779587446000,-500.93208102,0.00011084,2]
[422895890,1779587446000,-500.48281908,0.00011084,2]
[422895885,1779587446000,-500.38439688,0.00011084,2]
[422895887,1779587446000,-500.36660715,0.00011084,2]
[422895893,1779587446000,-509.14788093,0.00011084,2]
[422895894,1779587446000,-500.44831569,0.00011084,2]
[422895897,1779587446000,-500.48382647,0.00011084,2]
[422895898,1779587446000,-500.42385632,0.00011084,2]
[422895895,1779587446000,-501.27302578,0.00011084,2]
[422895902,1779587446000,-500.7913586,0.00011084,2]
[422895899,1779587446000,-500.6516578,0.00011084,2]
[422895900,1779587446000,-500.0,0.00011084,2]
[422895896,1779587446000,-500.94518705,0.00011084,2]
[422895903,1779587446000,-500.74927294,0.00011084,2]
[422895905,1779587446000,-500.0,0.00011084,2]
[422895906,1779587446000,-500.90581173,0.00011084,2]
[422895908,1779587446000,-501.23519364,0.00011084,2]
[422895904,1779587446000,-500.0,0.00011084,2]
[422895917,1779587446000,-500.86776008,0.00011084,2]
[422895918,1779587446000,-500.0,0.00011084,2]
[422895916,1779587446000,-501.24492162,0.00011084,2]
[422895915,1779587446000,-152.50015149,0.00011084,2]
[422895907,1779587446000,-501.73819416,0.00011084,2]
[422895913,1779587446000,-500.39160018,0.00011084,2]
[422895953,1779587446000,-500.0,0.00011084,2]
[422895964,1779587446000,-500.0,0.00011084,2]
[422895965,1779587446000,-500.0,0.00011084,2]
[422896004,1779587446000,-500.0,0.00011084,2]
[422896006,1779587446000,-500.0,0.00011084,2]
[422896007,1779587446000,-500.0,0.00011084,2]
[422896002,1779587446000,-500.0,0.00011084,2]
[422896001,1779587446000,-500.0,0.00011084,2]
[422896008,1779587446000,-504.74061639,0.00011084,2]
[422896012,1779587446000,-500.0,0.00011085,2]
[422896010,1779587446000,-504.25783305,0.00011085,2]
[422896011,1779587446000,-500.0,0.00011085,2]
[422896013,1779587446000,-500.0,0.00011105,2]
[422896018,1779587446000,-645.8105886,0.00011106,2]
[422896016,1779587446000,-500.0,0.00011106,2]
[422896021,1779587446000,-626.64,0.00011106,2]
[422896009,1779587446000,-500.0,0.00011084,2]
[422896015,1779587446000,-500.0,0.00011106,2]
[422896020,1779587446000,-500.0,0.00011106,2]
[422896017,1779587446000,-2243.59,0.00011106,2]
[422896019,1779587446000,-500.0,0.00011106,2]
[422896014,1779587446000,-500.0,0.00011106,2]
[422896023,1779587446000,-500.0,0.00011109,2]
[422896022,1779587446000,-586.00045899,0.00011109,2]
[422896026,1779587446000,-500.0,0.00011109,2]
[422896025,1779587446000,-500.0,0.00011109,2]
[422896024,1779587446000,-627.96,0.00011109,2]
[422896028,1779587446000,-500.0,0.00011109,2]
[422896027,1779587446000,-216.74595745,0.00011109,2]
[422896029,1779587446000,-500.0,0.00011109,2]
[422895963,1779587446000,-500.42132892,0.00011084,2]
[422896030,1779587446000,-500.0,0.00011109,2]
[422895999,1779587446000,-167.42605146,0.00011084,2]
[422895997,1779587446000,-612.93881866,0.00011084,2]
[422896031,1779587446000,-500.0,0.00011109,2]
[422895996,1779587446000,-500.0,0.00011084,2]
[422895966,1779587446000,-521.61897538,0.00011084,2]
[422895967,1779587446000,-500.0,0.00011084,2]
[422895968,1779587446000,-500.0,0.00011084,2]
[422895969,1779587446000,-500.0,0.00011084,2]
[422895971,1779587446000,-500.0,0.00011084,2]
[422895955,1779587446000,-500.0,0.00011084,2]
[422895957,1779587446000,-500.0,0.00011084,2]
[422895959,1779587446000,-500.0,0.00011084,2]
[422895995,1779587446000,-500.0,0.00011084,2]